bitfinex-derivatives/quotes_SOLF0:USTF0_20250905
["timestamp","ask_amount","ask_price","bid_price","bid_amount"]
[1757093564462,0.03112076,202.8,202.79,7.55]
[1757093565065,8.03,202.79,202.7,2.17647251]
[1757093565267,2.17647251,202.77,202.7,2.17647251]
[1757093565469,8.03,202.79,202.65,5.4529144]
[1757093565662,4.932,202.78,202.65,5.4529144]
[1757093566062,0.03467909,202.74,202.66,25.18]
[1757093566259,0.03467909,202.74,202.66,52.68]
[1757093567064,0.03467909,202.74,202.67,7.55]
[1757093570375,8.10467909,202.74,202.61,7.57]
[1757093570563,8.07,202.74,202.63,7.57]
[1757093570876,0.03526556,202.7,202.63,7.57]
[1757093571473,0.03526556,202.7,202.63,124.91]
[1757093572372,0.03526556,202.7,202.64,7.57]
[1757093573473,0.03526556,202.7,202.64,70.37]
[1757093573671,0.03526556,202.7,202.64,7.57]
[1757093573871,0.03526556,202.7,202.64,130.93]
[1757093574574,0.03526556,202.7,202.65,7.57]
[1757093575169,0.03526556,202.7,202.64,123.36]
[1757093575366,0.03526556,202.7,202.65,7.57]
[1757093576666,0.03526556,202.7,202.66,70.58]
[1757093576878,0.03526556,202.7,202.65,7.57]
[1757093577084,0.03526556,202.7,202.66,50.02]
[1757093577377,0.03526556,202.7,202.67,7.57]
[1757093577768,0.03526556,202.7,202.69,7.57]
[1757093579474,0.03526556,202.7,202.69,107.23]
[1757093580077,0.03526556,202.7,202.69,7.57]
[1757093580272,0.03526556,202.7,202.69,130.81]
[1757093580774,8.07,202.79,202.69,136.2629144]
[1757093580980,8.07,202.79,202.7,7.57]
[1757093581874,8.07,202.79,202.71,123.22]
[1757093582079,8.07,202.79,202.72,0.03508505]
[1757093582278,8.07,202.79,202.73,130.75]
[1757093582880,8.07,202.79,202.73,130.73]
[1757093583078,4.932,202.78,202.72,0.03508505]
[1757093583278,13.002,202.77,202.72,0.03508505]
[1757093583478,8.07,202.75,202.64,8.65]
[1757093583680,8.07,202.75,202.72,0.03222292]
[1757093583984,8.07,202.75,202.64,8.65]
[1757093584180,8.07,202.75,202.71,0.03490115]
[1757093584682,5.4529144,202.76,202.71,0.03490115]
[1757093584874,8.07,202.75,202.71,0.03490115]
[1757093585281,32.36044167,202.85,202.71,0.03490115]
[1757093585282,4.932,202.78,202.71,0.03490115]
[1757093585480,8.07,202.77,202.71,0.03490115]
[1757093585678,8.07,202.77,202.67,7.57]
[1757093585876,8.07,202.77,202.72,0.03159917]
[1757093586277,4.932,202.78,202.72,0.03159917]
[1757093586682,8.07,202.79,202.72,7.60159917]
[1757093586985,8.07,202.79,202.72,31.74159917]
[1757093587384,13.002,202.79,202.72,31.74159917]
[1757093587885,8.07,202.79,202.72,31.74159917]
[1757093588181,13.002,202.79,202.72,31.74159917]
[1757093588584,8.07,202.79,202.72,7.60159917]
[1757093588788,8.07,202.79,202.72,32.28159917]
[1757093589481,4.932,202.81,202.72,24.71159917]
[1757093589687,8.07,202.84,202.73,56.29]
[1757093590280,8.07,202.84,202.76,0.03601121]
[1757093591282,4.932,202.83,202.76,0.03601121]
[1757093591481,13.002,202.82,202.76,0.03601121]
[1757093591683,13.002,202.82,202.72,25.74]
[1757093591984,4.932,202.82,202.77,0.03286643]
[1757093592392,8.07,202.85,202.78,7.57]
[1757093592895,8.07,202.85,202.79,0.037449]
[1757093593097,13.002,202.85,202.79,0.037449]
[1757093594000,8.07,202.85,202.79,0.037449]
[1757093598707,8.07,202.85,202.8,8.02]
[1757093598907,8.07,202.85,202.79,8.057449]
[1757093600308,5.51044167,202.89,202.79,8.057449]
[1757093600309,8.15,202.89,202.79,8.057449]
[1757093600809,4.932,202.88,202.79,131.117449]
[1757093601300,4.932,202.88,202.79,8.057449]
[1757093602405,8.15,202.89,202.79,8.057449]
[1757093603302,5.51044167,202.92,202.81,8.02]
[1757093603506,8.15,202.93,202.81,8.02]
[1757093603709,8.15,202.93,202.84,4.4365]
[1757093603899,8.15,202.93,202.85,8.06781451]
[1757093604100,8.15,202.93,202.86,54.04]
[1757093604304,8.15,202.97,202.87,8.03]
[1757093604606,4.932,202.96,202.87,89.47]
[1757093604801,4.932,202.96,202.9,0.0323326]
[1757093605310,4.932,202.98,202.9,0.0323326]
[1757093605610,4.932,202.96,202.9,0.0323326]
[1757093608612,8.15,202.98,202.9,0.0323326]
[1757093609514,4.932,202.97,202.9,0.0323326]
[1757093609915,13.082,202.96,202.9,0.0323326]
[1757093610510,8.15,202.96,202.9,0.0323326]
[1757093610716,13.082,202.96,202.9,0.0323326]
[1757093615013,13.082,202.96,202.9,8.0623326]
[1757093615620,8.15,202.96,202.9,8.0623326]
[1757093616012,3.4017886,203.02,202.92,3.4017886]
[1757093616216,8.15,203.01,202.92,3.4017886]
[1757093616720,4.932,202.99,202.94,0.03673573]
[1757093616917,8.15,202.98,202.94,0.03673573]
[1757093617418,4.932,202.99,202.94,0.03673573]
[1757093617916,8.15,202.98,202.94,0.03673573]
[1757093618414,4.932,202.99,202.94,0.03673573]
[1757093618621,8.15,203.02,202.96,8.03]
[1757093620320,8.15,203.05,202.96,8.03]
[1757093620816,8.15,203.05,202.98,0.03419334]
[1757093621121,8.15,203.03,202.98,0.03419334]
[1757093621520,3.4017886,203.01,202.98,0.03419334]
[1757093621920,8.15,203.0,202.98,0.03419334]
[1757093622114,13.082,203.0,202.98,0.03419334]
[1757093622322,8.15,202.99,202.98,0.03419334]
[1757093622824,8.15,203.03,202.98,0.03419334]
[1757093623320,3.4017886,203.04,202.98,0.03419334]
[1757093623921,4.932,203.02,202.98,0.03419334]
[1757093624415,8.15,203.01,202.98,0.03419334]
[1757093624622,4.932,203.02,202.98,0.03419334]
[1757093624822,11.5517886,203.01,202.98,0.03419334]
[1757093625022,16.4837886,203.01,202.98,0.03419334]
[1757093625323,4.932,202.99,202.98,0.03419334]
[1757093625627,13.082,202.99,202.98,0.03419334]
[1757093628219,8.15,202.99,202.98,0.03419334]
[1757093629418,4.932,203.04,202.98,0.03419334]
[1757093629826,3.4017886,203.05,202.98,0.03419334]
[1757093630022,8.13,203.04,202.98,0.03419334]
[1757093630624,8.13,203.04,202.98,7.48419334]
[1757093633424,8.13,203.04,202.98,0.03419334]
[1757093636723,4.932,203.03,202.98,0.03419334]
[1757093637127,8.13,203.02,202.98,0.03419334]
[1757093637328,4.932,203.03,202.98,0.03419334]
[1757093637627,8.13,203.02,202.98,0.03419334]
[1757093637821,4.932,203.03,202.98,0.03419334]
[1757093638225,8.13,203.02,202.98,0.03419334]
[1757093638426,4.932,203.03,202.98,0.03419334]
[1757093638727,8.13,203.02,202.98,0.03419334]
[1757093638928,4.932,203.07,202.98,0.03419334]
[1757093639122,4.932,203.03,202.98,0.03419334]
[1757093639327,8.13,203.02,202.98,0.03419334]
[1757093639530,4.932,203.03,202.98,0.03419334]
[1757093639928,8.13,203.03,202.99,7.45]
[1757093640823,8.3337886,203.08,202.99,7.45]
[1757093640824,8.13,203.08,202.99,7.45]
[1757093641027,13.062,203.08,202.99,7.45]
[1757093642231,13.062,203.08,202.98,3.43598194]
[1757093643132,13.062,203.06,202.98,0.03419334]
[1757093643528,13.062,203.06,202.98,7.48419334]
[1757093646136,13.062,203.06,202.98,11.91779334]
[1757093646434,13.062,203.06,202.98,0.03419334]
[1757093647934,13.062,203.06,202.98,7.48419334]
[1757093649437,7.10690819,203.05,202.99,2.17490819]
[1757093650139,8.13,203.06,202.99,2.17490819]
[1757093650434,15.81534986,203.07,203.01,2.17490819]
[1757093650631,10.30490819,203.07,203.01,2.17490819]
[1757093651035,8.13,203.06,203.02,0.0312918]
[1757093651236,2.17490819,203.07,203.02,0.0312918]
[1757093651436,8.13,203.06,203.02,0.0312918]
[1757093651733,2.17490819,203.07,203.02,0.0312918]
[1757093651939,8.13,203.06,203.02,0.0312918]
[1757093652137,2.17490819,203.07,203.02,0.0312918]
[1757093654138,8.13,203.06,203.02,0.0312918]
[1757093654536,7.10690819,203.07,203.02,0.0312918]
[1757093655841,8.13,203.06,203.02,0.0312918]
[1757093656138,7.10690819,203.07,203.02,0.0312918]
[1757093656332,8.13,203.06,203.02,0.0312918]
[1757093656729,7.10690819,203.07,203.02,0.0312918]
[1757093657033,8.13,203.06,203.02,0.0312918]
[1757093657434,7.10690819,203.07,203.02,0.0312918]
[1757093657634,8.13,203.06,203.02,0.0312918]
[1757093657833,8.13,203.06,203.02,7.4812918]
[1757093658231,7.10690819,203.07,203.02,7.4812918]
[1757093658436,7.82,203.05,203.02,7.4812918]
[1757093658741,12.752,203.07,203.03,2.17490819]
[1757093658943,12.752,203.07,203.03,9.64490819]
[1757093659541,12.752,203.07,203.03,2.17490819]
[1757093659742,12.752,203.07,203.03,9.64490819]
[1757093659939,4.932,203.09,203.05,9.64490819]
[1757093660140,7.82,203.07,203.05,2.17490819]
[1757093661239,4.932,203.08,203.03,2.17490819]
[1757093661537,7.82,203.07,203.03,2.17490819]
[1757093661740,7.82,203.07,203.03,9.64490819]
[1757093663243,12.752,203.08,203.02,7.5012918]
[1757093663444,7.82,203.07,203.05,2.17490819]
[1757093663641,7.82,203.06,203.03,2.17490819]
[1757093664141,7.82,203.06,203.03,9.64490819]
[1757093664644,7.82,203.07,203.03,2.17490819]
[1757093665041,4.932,203.08,203.03,2.17490819]
[1757093665243,7.82,203.06,203.03,2.17490819]
[1757093665443,7.82,203.07,203.02,2.20619999]
[1757093665844,18.26244167,203.08,203.02,2.20619999]
[1757093666039,7.82,203.07,203.04,2.17490819]
[1757093666247,4.932,203.08,203.04,2.17490819]
[1757093666443,4.932,203.08,203.06,2.17490819]
[1757093666845,12.752,203.08,203.06,2.17490819]
[1757093667246,5.51044167,203.1,203.06,2.17490819]
[1757093667549,5.51044167,203.1,203.08,2.17490819]
[1757093668443,7.82,203.11,203.08,2.17490819]
[1757093668742,5.51044167,203.12,203.07,0.03307539]
[1757093668948,7.68534986,203.12,203.07,0.03307539]
[1757093669249,7.82,203.11,203.07,0.03307539]
[1757093669439,7.68534986,203.12,203.07,0.03307539]
[1757093669641,13.33044167,203.11,203.07,0.03307539]
[1757093670044,5.51044167,203.11,203.07,0.03307539]
[1757093670743,12.61734986,203.12,203.07,0.03307539]
[1757093670943,7.82,203.11,203.07,0.03307539]
[1757093671451,12.61734986,203.12,203.07,0.03307539]
[1757093671644,7.82,203.11,203.07,0.03307539]
[1757093671841,12.61734986,203.12,203.07,0.03307539]
[1757093672543,7.82,203.11,203.07,0.03307539]
[1757093672748,12.61734986,203.12,203.07,0.03307539]
[1757093672950,7.82,203.11,203.07,0.03307539]
[1757093673145,7.10690819,203.12,203.07,0.03307539]
[1757093673551,7.82,203.11,203.07,0.03307539]
[1757093673858,7.10690819,203.12,203.07,0.03307539]
[1757093674155,7.82,203.11,203.07,0.03307539]
[1757093674349,7.10690819,203.12,203.07,0.03307539]
[1757093674548,7.82,203.11,203.07,0.03307539]
[1757093674748,7.10690819,203.12,203.07,0.03307539]
[1757093675142,2.17490819,203.12,203.07,0.03307539]
[1757093675346,7.82,203.11,203.07,0.03307539]
[1757093675652,2.17490819,203.12,203.07,0.03307539]
[1757093675849,7.82,203.11,203.07,0.03307539]
[1757093676247,7.82,203.1,203.07,0.03307539]
[1757093676453,4.932,203.11,203.07,0.03307539]
[1757093676650,7.82,203.1,203.07,0.03307539]
[1757093676956,7.68534986,203.12,203.07,0.03307539]
[1757093677254,7.82,203.11,203.07,0.03307539]
[1757093678251,4.932,203.11,203.07,0.03307539]
[1757093678454,10.44244167,203.11,203.07,0.03307539]
[1757093678655,5.51044167,203.11,203.07,0.03307539]
[1757093678953,7.82,203.1,203.07,0.03307539]
[1757093679154,5.51044167,203.11,203.07,0.03307539]
[1757093679455,7.82,203.1,203.07,0.03307539]
[1757093679850,10.44244167,203.11,203.07,0.03307539]
[1757093680049,7.82,203.1,203.07,0.03307539]
[1757093680245,10.44244167,203.11,203.07,0.03307539]
[1757093680456,7.82,203.1,203.07,0.03307539]
[1757093680849,10.44244167,203.11,203.07,0.03307539]
[1757093681158,7.82,203.1,203.07,0.03307539]
[1757093681354,5.51044167,203.11,203.07,0.03307539]
[1757093681755,7.82,203.1,203.07,0.03307539]
[1757093682254,5.51044167,203.11,203.07,0.03307539]
[1757093682457,7.82,203.1,203.07,0.03307539]
[1757093682761,7.82,203.1,203.07,7.50307539]
[1757093683455,7.68534986,203.12,203.07,0.03307539]
[1757093683856,7.82,203.11,203.07,0.03307539]
[1757093684056,7.68534986,203.12,203.07,0.03307539]
[1757093684260,7.82,203.11,203.07,0.03307539]
[1757093684655,12.752,203.11,203.07,0.03307539]
[1757093684856,7.82,203.1,203.07,0.03307539]
[1757093685048,5.51044167,203.11,203.07,0.03307539]
[1757093685453,7.82,203.1,203.07,0.03307539]
[1757093687257,10.44244167,203.11,203.07,0.03307539]
[1757093687457,5.51044167,203.11,203.07,0.03307539]
[1757093687665,7.82,203.1,203.07,7.50307539]
[1757093687853,7.82,203.1,203.07,0.03307539]
[1757093688053,5.51044167,203.11,203.07,0.03307539]
[1757093688258,7.68534986,203.11,203.07,0.03307539]
[1757093688868,7.62,203.1,203.07,0.03307539]
[1757093689164,7.68534986,203.11,203.07,0.03307539]
[1757093689566,7.62,203.1,203.07,0.03307539]
[1757093691366,5.51044167,203.11,203.08,2.17490819]
[1757093691669,13.13044167,203.12,203.08,10.16490819]
[1757093692069,5.51044167,203.12,203.08,10.16490819]
[1757093692266,7.62,203.11,203.08,10.16490819]
[1757093694965,5.51044167,203.12,203.09,7.99]
[1757093695166,5.51044167,203.13,203.08,2.17490819]
[1757093695670,7.62,203.12,203.08,2.17490819]
[1757093695867,5.51044167,203.13,203.08,10.16490819]
[1757093696071,5.51044167,203.13,203.07,2.20798358]
[1757093696266,7.62,203.12,203.07,2.20798358]
[1757093696767,5.51044167,203.13,203.07,2.20798358]
[1757093697563,7.62,203.12,203.07,2.20798358]
[1757093698163,5.51044167,203.13,203.07,2.20798358]
[1757093698364,7.62,203.12,203.07,2.20798358]
[1757093698769,13.13044167,203.13,203.07,2.20798358]
[1757093699171,7.62,203.13,203.1,7.99]
[1757093700278,15.30534986,203.13,203.07,0.03307539]
[1757093700576,9.79490819,203.13,203.07,2.20798358]
[1757093700975,7.62,203.13,203.07,2.20798358]
[1757093701376,7.62,203.13,203.09,2.17490819]
[1757093701681,7.62,203.12,203.09,2.17490819]
[1757093701873,7.62,203.12,203.09,10.16490819]
[1757093702175,13.13044167,203.13,203.09,10.16490819]
[1757093702375,5.51044167,203.13,203.09,10.16490819]
[1757093702568,7.62,203.12,203.09,2.17490819]
[1757093702771,7.62,203.13,203.09,2.17490819]
[1757093703174,9.79490819,203.13,203.07,2.20798358]
[1757093703369,2.17490819,203.11,203.07,0.03307539]
[1757093703581,7.68534986,203.11,203.07,0.03307539]
[1757093703779,7.62,203.1,203.07,0.03307539]
[1757093703977,7.68534986,203.11,203.07,0.03307539]
[1757093704376,5.51044167,203.1,203.07,0.03307539]
[1757093704880,10.44244167,203.1,203.07,0.03307539]
[1757093705080,7.62,203.09,203.07,0.03307539]
[1757093705580,10.44244167,203.1,203.07,0.03307539]
[1757093705781,7.62,203.09,203.07,0.03307539]
[1757093705985,14.72690819,203.09,203.07,0.03307539]
[1757093706285,7.62,203.08,203.07,0.03307539]
[1757093706683,13.13044167,203.08,203.07,0.03307539]
[1757093709984,18.06244167,203.08,203.07,0.03307539]
[1757093710188,12.552,203.08,203.07,0.03307539]
[1757093711782,13.1273303,203.08,203.07,0.03307539]
[1757093712687,5.5073303,203.08,203.07,0.03307539]
[1757093712883,5.5073303,203.11,203.07,8.02307539]
[1757093713084,13.1273303,203.12,203.08,7.99]
[1757093713682,7.62,203.11,203.07,0.03307539]
[1757093713889,7.62,203.11,203.07,8.02307539]
[1757093714083,5.5073303,203.12,203.07,0.03307539]
[1757093714289,7.62,203.11,203.07,8.02307539]
[1757093714490,5.5073303,203.12,203.07,8.02307539]
[1757093714685,7.62,203.11,203.07,8.02307539]
[1757093715387,7.62,203.11,203.07,0.03307539]
[1757093715697,5.5073303,203.12,203.07,0.03307539]
[1757093715997,7.62,203.11,203.07,0.03307539]
[1757093716294,5.5073303,203.11,203.07,0.03307539]
[1757093717190,7.62,203.1,203.07,0.03307539]
[1757093717393,5.5073303,203.11,203.07,0.03307539]
[1757093717588,7.62,203.1,203.07,0.03307539]
[1757093718190,10.4393303,203.11,203.07,0.03307539]
[1757093718593,7.38,203.1,203.07,0.03307539]
[1757093718893,10.4393303,203.11,203.07,0.03307539]
[1757093719091,7.38,203.1,203.07,0.03307539]
[1757093720293,5.5073303,203.12,203.07,0.03307539]
[1757093720895,5.5073303,203.11,203.07,0.03307539]
[1757093721297,7.38,203.1,203.07,0.03307539]
[1757093721590,5.5073303,203.11,203.07,0.03307539]
[1757093721789,7.38,203.1,203.07,0.03307539]
[1757093721995,5.5073303,203.11,203.07,0.03307539]
[1757093722400,7.38,203.1,203.07,7.54307539]
[1757093722602,12.8873303,203.12,203.08,7.51]
[1757093722804,12.8873303,203.13,203.09,7.51]
[1757093722997,7.38,203.12,203.08,10.90754609]
[1757093723192,7.38,203.12,203.08,7.51]
[1757093723500,5.5073303,203.13,203.07,3.43062148]
[1757093724001,12.8873303,203.13,203.07,3.43062148]
[1757093724798,5.5073303,203.12,203.07,3.43062148]
[1757093725003,7.38,203.11,203.07,10.94062148]
[1757093726698,7.38,203.11,203.07,3.43062148]
[1757093726898,7.38,203.13,203.07,10.94062148]
[1757093728501,5.5073303,203.13,203.07,7.54307539]
[1757093728706,12.8873303,203.14,203.07,7.54307539]
[1757093739308,4.932,203.11,203.07,0.03307539]
[1757093739510,7.38,203.07,202.95,11.65633462]
[1757093739709,7.38,203.07,202.95,10.90754609]
[1757093739710,10.4393303,203.07,202.95,10.90754609]
[1757093739910,7.38,203.04,202.95,10.90754609]
[1757093742713,3.39754609,203.05,202.93,317.28]
[1757093742919,3.39754609,203.02,202.93,317.28]
[1757093743113,7.38,203.01,202.93,317.28]
[1757093744212,7.38,203.04,202.96,7.51]
[1757093745515,12.312,203.04,202.96,7.51]
[1757093746120,7.38,203.04,202.96,7.51]
[1757093746615,4.932,203.06,202.98,3.39754609]
[1757093746822,4.932,203.04,202.98,132.80754609]
[1757093747820,4.932,203.07,202.98,132.80754609]
[1757093748013,4.932,203.07,203.01,3.39754609]
[1757093748218,7.38,203.08,203.02,7.7]
[1757093748421,7.38,203.08,203.01,11.09754609]
[1757093749513,12.312,203.08,203.01,11.09754609]
[1757093750818,7.38,203.08,203.02,7.7]
[1757093755624,7.38,203.08,203.01,3.39754609]
[1757093756628,7.38,203.08,203.01,11.09754609]
[1757093758829,7.38,203.08,203.01,132.97754609]
[1757093760433,7.95,203.1,203.01,3.39754609]
[1757093760729,13.4573303,203.1,203.01,3.39754609]
[1757093761330,7.95,203.09,203.01,3.39754609]
[1757093761632,13.4573303,203.09,203.01,3.39754609]
[1757093763726,7.95,203.09,203.01,11.09754609]
[1757093765228,4.932,203.08,203.01,11.09754609]
[1757093765833,12.882,203.07,203.01,11.09754609]
[1757093766225,7.95,203.06,202.97,3.39754609]
[1757093766432,12.882,203.07,202.97,3.39754609]
[1757093766829,4.932,203.04,202.96,7.7]
[1757093767032,7.95,203.03,202.93,324.98]
[1757093767229,12.882,203.03,202.96,7.7]
[1757093768433,12.882,203.06,202.98,11.09754609]
[1757093769334,7.95,203.03,202.95,11.09754609]
[1757093769529,7.95,203.03,202.95,129.56]
[1757093769724,7.95,203.03,202.95,7.7]
[1757093770537,7.95,203.02,202.93,317.28]
[1757093770831,7.95,203.03,202.91,7.7]
[1757093771030,7.95,203.0,202.87,7.7]
[1757093771229,3.39754609,202.98,202.88,3.39754609]
[1757093771432,7.95,202.97,202.88,3.39754609]
[1757093771834,7.95,202.97,202.87,7.7]
[1757093772428,7.95,202.91,202.79,11.09754609]
[1757093773432,2.17870986,202.89,202.82,2.17870986]
[1757093773636,7.95,202.88,202.82,2.17870986]
[1757093773937,7.98622016,202.88,202.82,2.17870986]
[1757093774239,7.98622016,202.88,202.84,9.87870986]
[1757093774537,10.12870986,202.93,202.86,9.87870986]
[1757093774734,7.95,202.93,202.88,2.17870986]
[1757093774936,7.95,202.93,202.88,9.87870986]
[1757093775235,7.9874637,202.93,202.88,9.87870986]
[1757093775435,7.95,202.92,202.88,9.87870986]
[1757093776537,0.0374637,202.93,202.88,2.17870986]
[1757093776939,7.95,202.92,202.88,2.17870986]
[1757093777537,0.0374637,202.93,202.88,2.17870986]
[1757093778238,7.83,202.92,202.88,2.17870986]
[1757093778836,0.0374637,202.93,202.88,2.17870986]
[1757093779139,7.83,202.92,202.88,2.17870986]
[1757093779340,7.83,202.92,202.86,2.17870986]
[1757093779543,10.00870986,202.92,202.85,2.17870986]
[1757093779743,7.83,202.89,202.82,2.17870986]
[1757093779943,2.17870986,202.88,202.81,2.17870986]
[1757093780137,2.17870986,202.86,202.8,7.81]
[1757093780338,7.83,202.86,202.82,2.17870986]
[1757093780534,0.03730137,202.87,202.83,7.81]
[1757093780838,0.03598216,202.87,202.86,2.17870986]
[1757093781044,0.03598216,202.87,202.86,9.98870986]
[1757093781343,0.03598216,202.87,202.82,2.17870986]
[1757093781543,7.83,202.89,202.83,7.81]
[1757093781743,0.03308284,202.87,202.83,7.81]
[1757093781945,7.86308284,202.87,202.83,7.81]
[1757093782142,7.86308284,202.87,202.83,0.03129147]
[1757093782341,0.03308284,202.87,202.83,0.03129147]
[1757093782644,7.83,202.86,202.83,0.03129147]
[1757093783044,0.03308284,202.87,202.83,0.03129147]
[1757093783342,7.83,202.86,202.83,0.03129147]
[1757093783649,0.03308284,202.87,202.83,7.84129147]
[1757093784043,0.03308284,202.87,202.83,0.03129147]
[1757093784449,0.03308284,202.87,202.83,7.84129147]
[1757093785144,0.03308284,202.87,202.84,7.81]
[1757093785541,0.03308284,202.87,202.84,9.98870986]
[1757093785942,7.83,202.86,202.83,0.03129147]
[1757093786348,7.83,202.86,202.83,7.84129147]
[1757093786650,0.03308284,202.87,202.83,7.84129147]
[1757093788247,0.03308284,202.87,202.83,0.03129147]
[1757093788553,7.86308284,202.87,202.83,0.03129147]
[1757093789054,7.86308284,202.87,202.83,7.84129147]
[1757093789357,0.03308284,202.87,202.84,9.98870986]
[1757093789651,0.03308284,202.87,202.84,2.17870986]
[1757093789852,0.03308284,202.87,202.85,7.81]
[1757093790054,0.03308284,202.87,202.84,2.17870986]
[1757093790257,0.03308284,202.87,202.85,7.81]
[1757093790554,0.03308284,202.87,202.84,2.17870986]
[1757093791058,0.03308284,202.87,202.84,9.98870986]
[1757093791757,0.03308284,202.87,202.85,7.81]
[1757093792653,0.03308284,202.87,202.84,2.17870986]
[1757093792849,0.03308284,202.87,202.83,0.03129147]
[1757093793055,7.83,202.86,202.83,0.03129147]
[1757093793458,0.03308284,202.87,202.83,0.03129147]
[1757093793654,0.03308284,202.87,202.84,2.17870986]
[1757093793859,0.03308284,202.87,202.85,7.81]
[1757093795656,0.03308284,202.87,202.84,2.17870986]
[1757093796259,0.03308284,202.87,202.85,7.81]
[1757093797857,7.83,202.86,202.83,0.03129147]
[1757093798756,7.86308284,202.87,202.83,7.84129147]
[1757093799557,7.86308284,202.87,202.84,7.81]
[1757093799761,0.03308284,202.87,202.85,7.81]
[1757093799961,0.03308284,202.87,202.83,0.03129147]
[1757093800264,0.03308284,202.87,202.86,7.81]
[1757093801059,0.03308284,202.87,202.84,7.81]
[1757093801461,0.03308284,202.87,202.83,2.21000133]
[1757093801656,0.03308284,202.87,202.84,7.81]
[1757093801965,0.03308284,202.87,202.85,7.81]
[1757093803259,0.03308284,202.87,202.84,2.17870986]
[1757093803459,7.83,202.86,202.83,0.03129147]
[1757093805362,0.03308284,202.87,202.83,7.84129147]
[1757093805566,0.03308284,202.87,202.84,7.81]
[1757093805769,0.03308284,202.87,202.85,7.81]
[1757093806658,0.03308284,202.87,202.84,2.17870986]
[1757093806857,7.86308284,202.87,202.83,0.03129147]
[1757093807366,0.03308284,202.87,202.83,0.03129147]
[1757093807567,7.83,202.86,202.83,0.03129147]
[1757093808568,0.03308284,202.87,202.84,7.8]
[1757093808768,8.15308284,202.87,202.84,7.8]
[1757093809068,0.03308284,202.87,202.85,7.8]
[1757093809262,0.03308284,202.87,202.84,2.17870986]
[1757093809462,8.15308284,202.87,202.83,2.21000133]
[1757093809767,8.12,202.86,202.83,10.01000133]
[1757093810066,8.12,202.86,202.83,2.21000133]
[1757093810261,0.03308284,202.87,202.85,9.97870986]
[1757093810466,0.03308284,202.87,202.86,7.8]
[1757093815869,8.15308284,202.87,202.83,7.83129147]
[1757093816568,8.15308284,202.87,202.83,10.01000133]
[1757093816767,0.03308284,202.87,202.86,7.8]
[1757093821771,0.03308284,202.87,202.84,7.8]
[1757093822067,0.03308284,202.87,202.83,0.03129147]
[1757093822272,8.12,202.85,202.83,0.03129147]
[1757093822773,10.29870986,202.84,202.83,0.03129147]
[1757093825074,7.68604016,202.85,202.83,0.03129147]
[1757093825473,5.5073303,202.85,202.83,0.03129147]
[1757093825771,13.6273303,202.85,202.83,0.03129147]
[1757093826373,8.12,202.84,202.83,0.03129147]
[1757093829772,5.5073303,202.86,202.83,0.03129147]
[1757093829972,13.6273303,202.86,202.83,0.03129147]
[1757093830172,5.5073303,202.86,202.83,7.83129147]
[1757093830378,0.03308284,202.87,202.83,7.83129147]
[1757093830580,0.03308284,202.87,202.84,7.8]
[1757093830780,8.15308284,202.87,202.84,9.97870986]
[1757093830975,8.15308284,202.87,202.84,2.17870986]
[1757093831274,0.03308284,202.87,202.84,2.17870986]
[1757093831477,8.12,202.86,202.83,0.03129147]
[1757093831674,8.12,202.85,202.83,0.03129147]
[1757093831880,10.29870986,202.84,202.83,0.03129147]
[1757093832579,21.21433946,202.84,202.73,7.8]
[1757093832779,8.12,202.79,202.73,9.97870986]
[1757093833283,8.12,202.77,202.68,317.62]
[1757093833476,8.12,202.74,202.65,7.8]
[1757093833879,0.03311062,202.72,202.65,7.8]
[1757093834280,0.03311062,202.72,202.66,3.40925279]
[1757093834480,0.03311062,202.72,202.7,7.8]
[1757093835384,0.03311062,202.72,202.71,7.8]
[1757093837286,0.03311062,202.72,202.7,11.20925279]
[1757093837482,0.03311062,202.72,202.71,7.8]
[1757093840784,0.03311062,202.72,202.68,7.51]
[1757093840979,0.03311062,202.72,202.64,10.91925279]